Cogmind - Beta 14 *** ADVENTURER MODE // 2025.01.08 @ 00:09:56 Player: Amao Result: Destroyed by Y-64 Sentinel with KE Penetrator Performance ------------- Evolutions (6) 3000 Regions Visited (8) 1600 Robots Destroyed (0) 0 Value Destroyed (0) 0 Prototype IDs (0) 0 Alien Tech Used (0) 0 Bonus (2880) 2880 TOTAL SCORE: 7480 Bonus ------- Pacifist 2880 Cogmind --------- Core Integrity 0/1150 Matter 297/300 Energy 99/100 System Corruption 0% Temperature Cool (0) Movement Core (50) Location -4/Factory Parts ------- > --- POWER (4) -------- (None) > --- PROPULSION (2) --- (None) > --- UTILITY (10) ----- (None) > --- WEAPON (3) ------- (None) > --- INVENTORY (5) ---- (None) Peak State ------------ > --- POWER ------------ (None) > --- PROPULSION ------- (None) > --- UTILITY ---------- Advanced Terrain Scan Processor > --- WEAPON ----------- (None) > --- INVENTORY -------- (None) [Rating: 4] Favorites ----------- Power None Propulsion None Utility Signal Interpreter Processor Signal Interpreter Weapon None Build | -11 -10 -9 -9 -8 -7 -6 -5 -4 ------- Run | Yrd Mat Mat Min Mat Fac Fac Fac Fac Slots Evolved 12 | . . 2 . 2 2 2 2 2 Power 3 | . . . . . 1 1 . 1 Propulsion . | . . . . . . . . . Utility 8 | . . 2 . 2 1 1 1 1 Weapon 1 | . . . . . . . 1 . Parts Attached 2 | . . 1 . . . . . 1 Power . | . . . . . . . . . Engine . | . . . . . . . . . Core . | . . . . . . . . . Reactor . | . . . . . . . . . Propulsion . | . . . . . . . . . Treads . | . . . . . . . . . Leg . | . . . . . . . . . Wheel . | . . . . . . . . . Hover . | . . . . . . . . . Flight . | . . . . . . . . . Utility 2 | . . 1 . . . . . 1 Device . | . . . . . . . . . Storage . | . . . . . . . . . Processor 2 | . . 1 . . . . . 1 Hackware . | . . . . . . . . . Protection . | . . . . . . . . . Artifact . | . . . . . . . . . Weapon . | . . . . . . . . . Energy Gun . | . . . . . . . . . Energy Cannon . | . . . . . . . . . Ballistic Gun . | . . . . . . . . . Ballistic Cannon . | . . . . . . . . . Launcher . | . . . . . . . . . Special Weapon . | . . . . . . . . . Impact Weapon . | . . . . . . . . . Slashing Weapon . | . . . . . . . . . Piercing Weapon . | . . . . . . . . . Special Melee Weapon . | . . . . . . . . . Unidentified Prototypes . | . . . . . . . . . Parts Lost . | . . . . . . . . . Power . | . . . . . . . . . Propulsion . | . . . . . . . . . Utility . | . . . . . . . . . Weapon . | . . . . . . . . . Highest Loss Streak . | . . . . . . . . . To Critical Strikes . | . . . . . . . . . Average Slot Usage (%) 4 | . . 11 11 9 7 4 . 2 Processor 4 | . . 11 11 9 7 4 . 2 Peak Build Rating 4 | . . 1 1 1 1 1 . 4 Average Rating . | . . . 1 1 1 . . 1 On Entrance . | . . . 1 1 1 1 . . Naked Turns 502 | . 52 3 . . . 93 186 168 Heaviest Build . | . . . . . . . . . Greatest Support 3 | 3 3 3 3 3 3 3 3 3 Greatest Overweight (x) . | . . . . . . . . . Average Overweight (x) . | . . . . . . . . . Largest Inventory Capacity 5 | 5 5 5 5 5 5 5 5 5 Average Capacity 5 | 5 5 5 5 5 5 5 5 5 Most Carried 1 | . . 1 . . . . . 1 Average Carried . | . . . . . . . . . Final Capacity 5 | 5 5 5 5 5 5 5 5 5 Final Carried . | . . . . . . . . . Class Distribution -------------------- 100% | Mutant Dominant Class ---------------- Mutant | -10/Materials Mutant | -9/Materials Mutant | -9/Mines Mutant | -8/Materials Mutant | -7/Factory Mutant | -6/Factory Mutant | -5/Factory Mutant | -4/Factory Resources | -11 -10 -9 -9 -8 -7 -6 -5 -4 ----------- Run | Yrd Mat Mat Min Mat Fac Fac Fac Fac Matter Collected 212 | 200 . . 10 . . . . 2 Remotely . | . . . . . . . . . Salvage Created . | . . . . . . . . . Parts . | . . . . . . . . . Haulers Intercepted . | . . . . . . . . . Recyclers Shooed . | . . . . . . . . . Parts Field Recycled . | . . . . . . . . . Retrieved Matter . | . . . . . . . . . Parts Self-Destructed . | . . . . . . . . . Prevented . | . . . . . . . . . Kills | -11 -10 -9 -9 -8 -7 -6 -5 -4 ------- Run | Yrd Mat Mat Min Mat Fac Fac Fac Fac Combat Hostiles Destroyed . | . . . . . . . . . Classes Destroyed . | . . . . . . . . . Best Kill Streak . | . . . . . . . . . Combat Bots Only . | . . . . . . . . . Max Kills in Single Turn . | . . . . . . . . . Gunslinging . | . . . . . . . . . Exploded . | . . . . . . . . . Melee . | . . . . . . . . . Uniques/NPCs Destroyed . | . . . . . . . . . Combat | -11 -10 -9 -9 -8 -7 -6 -5 -4 -------- Run | Yrd Mat Mat Min Mat Fac Fac Fac Fac Hostile Shots Fired 310 | . . 15 12 15 9 86 65 108 Missed 148 | . . 7 6 10 3 47 26 49 Damage Taken 2493 | . 107 94 33 55 37 346 653 1168 Core 2493 | . 107 94 33 55 37 346 653 1168 Absorbed by Shields 27 | . . . . . . . . 27 Ignored by Resistances 707 | . 28 27 12 16 10 105 184 325 Core Remaining (%) 71 | 100 57 . 68 90 94 59 34 . Volleys Fired . | . . . . . . . . . Largest . | . . . . . . . . . Hottest . | . . . . . . . . . Shots Fired . | . . . . . . . . . Gun . | . . . . . . . . . Cannon . | . . . . . . . . . Launcher . | . . . . . . . . . Special . | . . . . . . . . . Kinetic . | . . . . . . . . . Thermal . | . . . . . . . . . Explosive . | . . . . . . . . . Electromagnetic . | . . . . . . . . . Robot Hit Streak . | . . . . . . . . . Robot Miss Streak . | . . . . . . . . . Penetration Max . | . . . . . . . . . Secondary Targets . | . . . . . . . . . Shots Hit Robots . | . . . . . . . . . Core Hits . | . . . . . . . . . Critical Kills . | . . . . . . . . . Critical Parts Destroyed . | . . . . . . . . . Critical Strikes . | . . . . . . . . . Melee Attacks . | . . . . . . . . . Impact . | . . . . . . . . . Slashing . | . . . . . . . . . Piercing . | . . . . . . . . . Sneak Attacks . | . . . . . . . . . Combat Hostiles . | . . . . . . . . . Follow-up Attacks . | . . . . . . . . . Damage Inflicted 3 | . . . . . . . . 3 Guns . | . . . . . . . . . Cannons . | . . . . . . . . . Explosions . | . . . . . . . . . Melee . | . . . . . . . . . Ramming 3 | . . . . . . . . 3 Kinetic . | . . . . . . . . . Thermal . | . . . . . . . . . Explosive . | . . . . . . . . . Electromagnetic . | . . . . . . . . . Impact . | . . . . . . . . . Slashing . | . . . . . . . . . Piercing . | . . . . . . . . . Highest Corruption 2 | . . . . . . . 2 . Average Corruption 1 | . . . . . . . 1 . Corruption Purged . | . . . . . . . . . Corruption Blocked . | . . . . . . . . . Effects 2 | . . . . . . . 2 . Energy Discharges 1 | . . . . . . . 1 . Alerts 1 | . . . . . . . 1 . Overload Shots . | . . . . . . . . . Overflow Damage . | . . . . . . . . . Projectiles . | . . . . . . . . . Explosions . | . . . . . . . . . Melee . | . . . . . . . . . Knockbacks . | . . . . . . . . . Impact . | . . . . . . . . . Kinetic . | . . . . . . . . . Secondary . | . . . . . . . . . Self-Inflicted Damage 1 | . . . . . . . . 1 Shots . | . . . . . . . . . Rammed 1 | . . . . . . . . 1 Targets Rammed 1 | . . . . . . . . 1 Kicked . | . . . . . . . . . Crushed . | . . . . . . . . . Highest Temperature . | . . . . . . . . . Average Temperature . | . . . . . . . . . Received Heat Transfer 363 | . . 42 . 18 18 108 108 69 Siege Activations . | . . . . . . . . . Robots Corrupted . | . . . . . . . . . Combat Hostiles . | . . . . . . . . . Parts Fried . | . . . . . . . . . Impact Corruptions . | . . . . . . . . . Robots Melted . | . . . . . . . . . Combat Hostiles . | . . . . . . . . . Parts Melted . | . . . . . . . . . Heat Transferred . | . . . . . . . . . Parts Sabotaged . | . . . . . . . . . Parts Stolen . | . . . . . . . . . Parts Stripped . | . . . . . . . . . Power Chain Reactions . | . . . . . . . . . Alert | -11 -10 -9 -9 -8 -7 -6 -5 -4 ------- Run | Yrd Mat Mat Min Mat Fac Fac Fac Fac Peak Influence 589 | . 15 20 81 161 199 402 589 479 Initial 248 | . . 5 6 26 62 83 169 248 Average 195 | . 9 15 27 80 135 196 302 327 Maximum Alert Level 2 | . . . . . . 2 2 2 Low Security (%) 55 | 100 100 100 100 100 100 42 45 . Level 1 36 | . . . . . . 54 26 84 Level 2 8 | . . . . . . 2 27 15 Level 3 . | . . . . . . . . . Level 4 . | . . . . . . . . . Level 5 . | . . . . . . . . . High Security . | . . . . . . . . . Max Security . | . . . . . . . . . Squads Dispatched 9 | . . 3 . 1 1 1 2 1 Investigation 2 | . . 1 . . . . 1 . Extermination . | . . . . . . . . . Reinforcement 7 | . . 2 . 1 1 1 1 1 Assault . | . . . . . . . . . Garrison . | . . . . . . . . . Intercept . | . . . . . . . . . Searches Triggered . | . . . . . . . . . Construction Impeded . | . . . . . . . . . Haulers Reinforced . | . . . . . . . . . Active Scanning Responses . | . . . . . . . . . Cargo Convoy Interrupts . | . . . . . . . . . Stealth | -11 -10 -9 -9 -8 -7 -6 -5 -4 --------- Run | Yrd Mat Mat Min Mat Fac Fac Fac Fac Distress Signals 2 | . . . . 1 . . 1 . Communications Jammed . | . . . . . . . . . Distress Signals . | . . . . . . . . . Times Spotted 94 | . 3 8 4 11 6 18 24 20 Peak Tracking Total 15 | . 3 8 4 9 3 7 15 9 Tactical Retreats 20 | . . . 2 1 1 5 5 6 Traps | -11 -10 -9 -9 -8 -7 -6 -5 -4 ------- Run | Yrd Mat Mat Min Mat Fac Fac Fac Fac Traps Triggered 7 | . 1 1 . . 2 1 1 1 Indirectly . | . . . . . . . . . Trap Hack Attempts . | . . . . . . . . . Triggered . | . . . . . . . . . Disarmed . | . . . . . . . . . Reprogrammed . | . . . . . . . . . Reused . | . . . . . . . . . Traps Extracted . | . . . . . . . . . Installed . | . . . . . . . . . Triggered . | . . . . . . . . . Machines | -11 -10 -9 -9 -8 -7 -6 -5 -4 ---------- Run | Yrd Mat Mat Min Mat Fac Fac Fac Fac Machines Disabled . | . . . . . . . . . Max in Single Turn . | . . . . . . . . . Machines Repaired . | . . . . . . . . . Machines Dismantled . | . . . . . . . . . Machines Sabotaged . | . . . . . . . . . Overloaded Fab Kills . | . . . . . . . . . Hacking | -11 -10 -9 -9 -8 -7 -6 -5 -4 --------- Run | Yrd Mat Mat Min Mat Fac Fac Fac Fac Machines Accessed 9 | . . 1 . 1 2 2 1 2 Terminals 9 | . . 1 . 1 2 2 1 2 Fabricators . | . . . . . . . . . Repair Stations . | . . . . . . . . . Recycling Units . | . . . . . . . . . Scanalyzers . | . . . . . . . . . Garrison Access . | . . . . . . . . . Total Hacks 14 | . . 1 . 2 3 3 3 2 Successful 9 | . . 1 . . 3 3 . 2 Failed 5 | . . . . 2 . . 3 . Catastrophic 2 | . . . . 1 . . 1 . Database Lockouts . | . . . . . . . . . Manual 8 | . . 1 . . 1 1 4 1 Terminals 14 | . . 1 . 2 3 3 3 2 Fabricators . | . . . . . . . . . Repair Stations . | . . . . . . . . . Recycling Units . | . . . . . . . . . Scanalyzers . | . . . . . . . . . Garrison Access . | . . . . . . . . . Terminal Hacks 9 | . . 1 . . 3 3 . 2 Open DSF 1 | . . . . . 1 . . . Branch Access Points 1 | . . . . . . . . 1 Locate Traps 1 | . . . . . . 1 . . Maintenance Status 4 | . . 1 . . 1 1 . 1 Zone Layout 2 | . . . . . 1 1 . . Fabricator Hacks . | . . . . . . . . . Repair Station Hacks . | . . . . . . . . . Recycling Unit Hacks . | . . . . . . . . . Scanalyzer . | . . . . . . . . . Garrison Access Hacks . | . . . . . . . . . Unauthorized Hacks . | . . . . . . . . . Terminals . | . . . . . . . . . Fabricators . | . . . . . . . . . Repair Stations . | . . . . . . . . . Recycling Units . | . . . . . . . . . Scanalyzers . | . . . . . . . . . Garrison Access . | . . . . . . . . . Data Cores Recovered . | . . . . . . . . . Used . | . . . . . . . . . Hacking Detections 3 | . . . . 1 . 1 1 . Full Trace Events 2 | . . . . 1 . . 1 . Feedback Events 1 | . . . . . . . 1 . Corruption 1 | . . . . . . . 1 . Feedback Blocked . | . . . . . . . . . Robot Schematics Acquired . | . . . . . . . . . Robots Built . | . . . . . . . . . Authchips . | . . . . . . . . . Time . | . . . . . . . . . Total Robot Build Rating . | . . . . . . . . . Part Schematics Acquired . | . . . . . . . . . Parts Built . | . . . . . . . . . Authchips . | . . . . . . . . . Time . | . . . . . . . . . Total Part Build Rating . | . . . . . . . . . Parts Repaired . | . . . . . . . . . Time . | . . . . . . . . . Parts Recycled . | . . . . . . . . . Recycled Matter . | . . . . . . . . . Retrieved Matter . | . . . . . . . . . Retrieved Components . | . . . . . . . . . Parts Scanalyzed . | . . . . . . . . . Part Schematics Acquired . | . . . . . . . . . Parts Damaged . | . . . . . . . . . Bothacking | -11 -10 -9 -9 -8 -7 -6 -5 -4 ------------ Run | Yrd Mat Mat Min Mat Fac Fac Fac Fac Used RIF Installer . | . . . . . . . . . Robots Hacked . | . . . . . . . . . Non-combat . | . . . . . . . . . Combat . | . . . . . . . . . Robot Hacks Applied . | . . . . . . . . . Relay Couplers Released . | . . . . . . . . . Fabnet Peak Effective % . | . . . . . . . . . Robots Rewired . | . . . . . . . . . Allies Hacked . | . . . . . . . . . Hacks Repelled . | . . . . . . . . . Allies | -11 -10 -9 -9 -8 -7 -6 -5 -4 -------- Run | Yrd Mat Mat Min Mat Fac Fac Fac Fac Total Allies . | . . . . . . . . . Largest Group . | . . . . . . . . . Highest-Rated Group . | . . . . . . . . . Highest-Rated Ally . | . . . . . . . . . Total Orders . | . . . . . . . . . Ally Attacks . | . . . . . . . . . Total Damage . | . . . . . . . . . Kills . | . . . . . . . . . Allies Corrupted . | . . . . . . . . . Allies Melted . | . . . . . . . . . Intel | -11 -10 -9 -9 -8 -7 -6 -5 -4 ------- Run | Yrd Mat Mat Min Mat Fac Fac Fac Fac Robot Analysis Total . | . . . . . . . . . Derelict Logs Recovered . | . . . . . . . . . Drone Launches . | . . . . . . . . . Drone Recoveries . | . . . . . . . . . Exploration | -11 -10 -9 -9 -8 -7 -6 -5 -4 ------------- Run | Yrd Mat Mat Min Mat Fac Fac Fac Fac Turns Passed 1340 | 18 52 70 49 129 195 334 186 307 Spaces Moved 2603 | 36 104 135 98 258 358 667 372 575 Core 2603 | 36 104 135 98 258 358 667 372 575 Treads . | . . . . . . . . . Legs . | . . . . . . . . . Wheels . | . . . . . . . . . Hover . | . . . . . . . . . Flight . | . . . . . . . . . Fastest Speed 50 | 50 50 50 50 50 50 50 50 50 Average Speed 50 | 50 50 50 50 50 50 50 50 50 Slowest Speed 50 | 50 50 50 50 50 50 50 50 50 Overloaded Moves . | . . . . . . . . . Propulsion Burnouts . | . . . . . . . . . Robots Hopped . | . . . . . . . . . Cave-ins Triggered . | . . . . . . . . . Exploration Rate (%) 22 | 3 32 15 40 36 14 20 19 20 Regions Visited 8 Branch Regions 1 Pre-discovered Areas . | . . . . . . . . . Known Exits Taken 4 | . . 1 1 1 1 . . . Unknown Exits Taken 4 | 1 1 . . . . 1 1 . Scrap Searched . | . . . . . . . . . Spaces Dug . | . . . . . . . . . Terrain Destroyed . | . . . . . . . . . Melee . | . . . . . . . . . Projectile . | . . . . . . . . . AOE . | . . . . . . . . . Terrain Rammed . | . . . . . . . . . Walls Destroyed . | . . . . . . . . . Machines Disabled . | . . . . . . . . . Actions | -11 -10 -9 -9 -8 -7 -6 -5 -4 --------- Run | Yrd Mat Mat Min Mat Fac Fac Fac Fac Total 2632 | 35 103 136 97 257 373 666 371 594 Wait 6 | . . . . . 1 . . 5 Move 2595 | 35 103 134 97 257 357 666 371 575 Hop . | . . . . . . . . . Pick Up 2 | . . 1 . . . . . 1 Fast Attach . | . . . . . . . . . Attach 2 | . . 1 . . . . . 1 Detach . | . . . . . . . . . Swap . | . . . . . . . . . Drop . | . . . . . . . . . Fire . | . . . . . . . . . Melee . | . . . . . . . . . Ram 1 | . . . . . . . . 1 Kick . | . . . . . . . . . Crush . | . . . . . . . . . Escape Stasis 26 | . . . . . 15 . . 11 Rewire . | . . . . . . . . . Trap . | . . . . . . . . . Miscellaneous . | . . . . . . . . . Route ------- -11/Scrapyard -10/Materials -9/Materials -9/Mines -8/Materials -7/Factory -6/Factory (discovered 3 exits: *Fac / *Low x2) -5/Factory -4/Factory (discovered 5 exits: Upp x2 / Ext x2 / Arm) History --------- Turn | Location | Event 3 | -11/Scrapyard | Discovered new exit (range 15) 19 | -11/Scrapyard | Entered Materials 68 | -10/Materials | Discovered new exit (range 7) 71 | -10/Materials | Entered another Materials area 71 | -9/Materials | Evolved 2 slots: Utility x2 136 | -9/Materials | Discovered new exit (range 10) 140 | -9/Materials | Identified exit to Mines 141 | -9/Materials | Entered Mines 183 | -9/Mines | Discovered new exit (range 15) 190 | -9/Mines | Identified exit to Materials 190 | -9/Mines | Entered Materials 190 | -8/Materials | Evolved 2 slots: Utility x2 304 | -8/Materials | Build established: Mutant 317 | -8/Materials | Discovered new exit (range 4) 318 | -8/Materials | Identified exit to Factory 319 | -8/Materials | Entered Factory 319 | -7/Factory | Evolved 2 slots: Power x1, Utility x1 512 | -7/Factory | Discovered new exit (range 5) 514 | -7/Factory | Identified exit to Factory 514 | -7/Factory | Entered another Factory area 514 | -6/Factory | Evolved 2 slots: Power x1, Utility x1 582 | -6/Factory | Discovered new exit (range 4) 583 | -6/Factory | Identified exit to Lower Caves 673 | -6/Factory | Discovered exit to Lower Caves (range 16) 830 | -6/Factory | Discovered new exit (range 4) 848 | -6/Factory | Entered another Factory area 848 | -5/Factory | Evolved 2 slots: Utility x1, Weapon x1 984 | -5/Factory | Core integrity fell below 50% 1030 | -5/Factory | Discovered new exit (range 8) 1034 | -5/Factory | Entered another Factory area 1034 | -4/Factory | Evolved 2 slots: Power x1, Utility x1 1154 | -4/Factory | Spotted B-86 Titan 1216 | -4/Factory | Spotted B-86 Titan 1218 | -4/Factory | Core integrity fell below 50% 1248 | -4/Factory | Core integrity fell below 20% 1301 | -4/Factory | Identified exit to Upper Caves 1301 | -4/Factory | Identified exit to Extension 1301 | -4/Factory | Identified exit to Armory 1341 | -4/Factory | Destroyed by Y-64 Sentinel with KE Penetrator Last Messages --------------- Slug penetrates Pressure Siphon. Pressure Siphon disabled. Acquired 2 matter. K-01 Serf collects debris. Penetrated by Slug. Connecting with Terminal... >>Access(Branch) Found 5 branch access points: (3,5) Upper Caves (151,88) Upper Caves (183,82) Extension (23,28) Extension (26,47) Armory Map updated. Connecting with Terminal... Penetrated by Slug. Slug penetrates Wall. Penetrated by Slug. Slug penetrates Wall. Penetrated by Slug. Map ----- +----------------------------------------------------+ | ?????????????????????????????????????????????????? | | ?????????????????????????????????????????????????? | | ?????????????????????????????????????????????????? | | ?????????????????????????????????????????????????? | | ?????????????????????????????????????????????????? | | ?????????????????????????????????????????????????? | | ?????????????????????????????????????????????????? | | ?????????????????????????????????????????????????? | | ?????????????????????????????????????????????????? | | ?????????????????????????????????????????????????? | | ?????????????????????????????????????????????????? | | ?????????????????????????????????????????????????? | | ?????????????????????????????????????????????????? | | ?????????????????????????????????????????????????? | | ???????????????????????????###########?????####### | | ???????????????????????????? ??????# | | ???????????????????????????? ! ??????# "" | | ????????????????????????????? ! ???????# "" | | ????????????????????????????? ???????# ! """ | | ?????????????????????????????? /????????# """ | | ?????????????????????????????? = ????????# """ | | ??????????????????????????????? ?????????# | | ????????????###########???????? ?????????# | | ????????????# #?????####+####??????# | | ????????????# ####### ####???#####+# | | ????????????# @ ##"####### | | ????????????# ! t | | ????????????# T | | ????????????# | | ????????????# ##########= | | ????????????# ####### #????????##### | | ????????????# ??????#########????????????? | | ????????????##########???????????????????????????? | | | | | | | | | | | | | | | | | | | | | | | | | | | | | | | | | | | +----------------------------------------------------+ Best States ------------- Heat Dissipation 43 Energy Generation 5 Energy Capacity 100 Matter Stores 300 Matter Capacity 300 Sight Range 16 Terrain Scan Density 210 Resistance: KI 20 Resistance: TH 20 Resistance: EX 20 Resistance: EM 20 Resistance: I 20 Resistance: S 20 Resistance: P 20 Evasion (%) 50 Offensive Hacking 10 Item Schematics ----------------- None Robot Schematics ------------------ None Fabricated ------------ Nothing Alien Tech Used ----------------- None Achievements -------------- None Challenges ------------ None Game ------ Seed MediumChargeHammer Manual? 0 Play Time 00:19:55 Cumulative 37.2 hours Start 2025.01.07 @ 23:50:39 End 2025.01.08 @ 00:09:56 Sessions 1 Manual Loads 0 Difficulty Adventurer Special Mode None Game No. 55 Rogue 10 Adventurer 45 Explorer 0 Win Type - Total 1 Types 1/0/0/0/0/0/0/0/0 Lore% 11 Gallery% 33 Achievement% 29 Wizard Run 0 Options --------- Layout 1 ASCII 0 Keyboard 1 Movement Vi Keybinds 0 Fullscreen 1 Font 24/Smallcaps Map View 50x40 Zoom Use 0% Tactical HUD 0 Map Filters NONE Filters NONE Steam 1 RUN: d3259684-e475-4e79-bd43-7e482fa32dc8